[Event "Titled Tuesday Blitz March 29 Early 2022"]
[White "Kouskoutis, Georgios-Alexandros"]
[Black "Kaminski, Victor"]
[WhiteFideId "4234049"]
[BlackFideId "1131630"]
[WhiteElo "2130"]
[BlackElo "2181"]
[Result "1-0"]
[Round "07"]
[TimeControl "180+1"]
[Date "2022.03.30"]
[WhiteClock "0:00:12"]
[BlackClock "0:00:22"]

1. c4 {[%clk 0:03:00]}  e6 {[%clk 0:02:34]} 2. g3 {[%clk 0:02:57]}  d5 {[%clk 0:02:34]} 3. Bg2 {[%clk 0:02:58]}  Nf6 {[%clk 0:02:33]} 4. Nf3 {[%clk 0:02:58]}  dxc4 {[%clk 0:02:32]} 5. Qa4+ {[%clk 0:02:57]}  c6 {[%clk 0:02:32]} 6. Qxc4 {[%clk 0:02:58]}  b5 {[%clk 0:02:33]} 7. Qc2 {[%clk 0:02:58]}  Bb7 {[%clk 0:02:33]} 8. O-O {[%clk 0:02:56]}  Be7 {[%clk 0:02:31]} 9. a4 {[%clk 0:02:53]}  Nbd7 {[%clk 0:02:26]} 10. Nd4 {[%clk 0:02:25]}  Rc8 {[%clk 0:02:22]} 11. Nxc6 {[%clk 0:02:05]}  Qb6 {[%clk 0:01:53]} 12. axb5 {[%clk 0:02:03]}  a6 {[%clk 0:01:48]} 13. Nc3 {[%clk 0:01:48]}  axb5 {[%clk 0:01:46]} 14. Nxe7 {[%clk 0:01:48]}  Kxe7 {[%clk 0:01:44]} 15. Bxb7 {[%clk 0:01:44]}  Qxb7 {[%clk 0:01:43]} 16. Qb3 {[%clk 0:01:41]}  b4 {[%clk 0:01:40]} 17. d4 {[%clk 0:01:31]}  Rb8 {[%clk 0:01:38]} 18. Na4 {[%clk 0:01:27]}  Qd5 {[%clk 0:01:23]} 19. Qxd5 {[%clk 0:01:26]}  Nxd5 {[%clk 0:01:20]} 20. Bd2 {[%clk 0:01:27]}  f5 {[%clk 0:01:19]} 21. Rfc1 {[%clk 0:01:22]}  Rhc8 {[%clk 0:01:17]} 22. b3 {[%clk 0:01:08]}  h6 {[%clk 0:01:09]} 23. h4 {[%clk 0:01:07]}  g6 {[%clk 0:01:00]} 24. Bxh6 {[%clk 0:01:05]}  e5 {[%clk 0:00:59]} 25. dxe5 {[%clk 0:01:02]}  Nxe5 {[%clk 0:00:59]} 26. Bd2 {[%clk 0:00:56]}  Nc6 {[%clk 0:00:53]} 27. Rc5 {[%clk 0:00:44]}  Ke6 {[%clk 0:00:48]} 28. Rac1 {[%clk 0:00:40]}  Nde7 {[%clk 0:00:41]} 29. Bf4 {[%clk 0:00:34]}  Ra8 {[%clk 0:00:33]} 30. Nb6 {[%clk 0:00:33]}  Nd4 {[%clk 0:00:33]} 31. Rxc8 {[%clk 0:00:21]}  Nxc8 {[%clk 0:00:29]} 32. Nxa8 {[%clk 0:00:20]}  Nxe2+ {[%clk 0:00:28]} 33. Kf1 {[%clk 0:00:20]}  Nxc1 {[%clk 0:00:28]} 34. Bxc1 {[%clk 0:00:21]}  Kd6 {[%clk 0:00:26]} 35. Bf4+ {[%clk 0:00:17]}  Kd5 {[%clk 0:00:25]} 36. Nc7+ {[%clk 0:00:17]}  Kd4 {[%clk 0:00:25]} 37. Na6 {[%clk 0:00:16]}  Kc3 {[%clk 0:00:25]} 38. Ke2 {[%clk 0:00:14]}  Kxb3 {[%clk 0:00:25]} 39. Bd2 {[%clk 0:00:14]}  Kc4 {[%clk 0:00:21]} 40. Nxb4 {[%clk 0:00:14]}  Ne7 {[%clk 0:00:20]} 41. Nd3 {[%clk 0:00:14]}  Nd5 {[%clk 0:00:19]} 42. Ne5+ {[%clk 0:00:14]}  Kd4 {[%clk 0:00:20]} 43. Nxg6 {[%clk 0:00:15]}  Ke4 {[%clk 0:00:20]} 44. f3+ {[%clk 0:00:13]}  Kd4 {[%clk 0:00:20]} 45. h5 {[%clk 0:00:13]}  Nf6 {[%clk 0:00:19]} 46. h6 {[%clk 0:00:14]}  Nh7 {[%clk 0:00:19]} 47. Bb4 {[%clk 0:00:13]}  Kd5 {[%clk 0:00:19]} 48. Nf8 {[%clk 0:00:13]}  Nf6 {[%clk 0:00:18]} 49. Bc3 {[%clk 0:00:12]}  Nh7 {[%clk 0:00:19]} 50. Nxh7 {[%clk 0:00:12]}  Ke6 {[%clk 0:00:20]} 51. Ng5+ {[%clk 0:00:12]}  Ke7 {[%clk 0:00:20]} 52. Be5 {[%clk 0:00:12]}  f4 {[%clk 0:00:21]} 53. gxf4 {[%clk 0:00:12]}  Kf8 {[%clk 0:00:20]} 54. h7 {[%clk 0:00:12]}  Ke7 {[%clk 0:00:21]} 55. h8=Q {[%clk 0:00:12]}  Kd7 {[%clk 0:00:22]} 56. Qf6 {[%clk 0:00:12]} 1-0


[Site "https://www.chess.com"]

[Event "Titled Tuesday Blitz March 29 Early 2022"]
[White "Kozak, Antoni"]
[Black "Demchenko, Anton"]
[WhiteFideId "21832030"]
[BlackFideId "4160258"]
[WhiteElo "2236"]
[BlackElo "2539"]
[Result "0-1"]
[Round "07"]
[TimeControl "180+1"]
[Date "2022.03.29"]
[WhiteClock "0:00:03"]
[BlackClock "0:00:10"]

1. Nf3 {[%clk 0:03:00]}  Nf6 {[%clk 0:03:00]} 2. c4 {[%clk 0:02:59]}  b6 {[%clk 0:02:56]} 3. g3 {[%clk 0:02:58]}  Bb7 {[%clk 0:02:56]} 4. Bg2 {[%clk 0:02:58]}  g6 {[%clk 0:02:57]} 5. O-O {[%clk 0:02:58]}  Bg7 {[%clk 0:02:57]} 6. Nc3 {[%clk 0:02:58]}  O-O {[%clk 0:02:58]} 7. Re1 {[%clk 0:02:57]}  Ne4 {[%clk 0:02:55]} 8. Nxe4 {[%clk 0:02:51]}  Bxe4 {[%clk 0:02:56]} 9. d3 {[%clk 0:02:51]}  Bb7 {[%clk 0:02:56]} 10. Qc2 {[%clk 0:02:50]}  c5 {[%clk 0:02:54]} 11. Bg5 {[%clk 0:02:49]}  Nc6 {[%clk 0:02:53]} 12. Rad1 {[%clk 0:02:48]}  d5 {[%clk 0:02:40]} 13. cxd5 {[%clk 0:02:39]}  Qxd5 {[%clk 0:02:41]} 14. Qc1 {[%clk 0:02:27]}  Qxa2 {[%clk 0:02:36]} 15. Bh6 {[%clk 0:02:23]}  Qxb2 {[%clk 0:02:06]} 16. Qxb2 {[%clk 0:02:15]}  Bxb2 {[%clk 0:02:07]} 17. Bxf8 {[%clk 0:02:15]}  Rxf8 {[%clk 0:02:03]} 18. Rb1 {[%clk 0:02:09]}  Bg7 {[%clk 0:01:59]} 19. Rec1 {[%clk 0:02:04]}  Rb8 {[%clk 0:01:45]} 20. e3 {[%clk 0:01:43]}  Rd8 {[%clk 0:00:53]} 21. d4 {[%clk 0:01:43]}  cxd4 {[%clk 0:00:48]} 22. Nxd4 {[%clk 0:01:43]}  Nxd4 {[%clk 0:00:48]} 23. exd4 {[%clk 0:01:41]}  Bxg2 {[%clk 0:00:34]} 24. Kxg2 {[%clk 0:01:42]}  Bxd4 {[%clk 0:00:35]} 25. Rc7 {[%clk 0:01:18]}  Bc5 {[%clk 0:00:35]} 26. Rxa7 {[%clk 0:01:18]}  Rd2 {[%clk 0:00:36]} 27. Rf1 {[%clk 0:01:18]}  f5 {[%clk 0:00:34]} 28. Raa1 {[%clk 0:01:13]}  Rd7 {[%clk 0:00:19]} 29. Rfd1 {[%clk 0:01:11]}  Rc7 {[%clk 0:00:18]} 30. Ra8+ {[%clk 0:01:10]}  Kg7 {[%clk 0:00:18]} 31. Rdd8 {[%clk 0:01:10]}  Kf6 {[%clk 0:00:17]} 32. f4 {[%clk 0:01:08]}  Ke6 {[%clk 0:00:14]} 33. Rh8 {[%clk 0:01:07]}  Bd6 {[%clk 0:00:12]} 34. Rxh7 {[%clk 0:01:06]}  Rc2+ {[%clk 0:00:13]} 35. Kf3 {[%clk 0:01:05]}  b5 {[%clk 0:00:13]} 36. Ke3 {[%clk 0:01:00]}  b4 {[%clk 0:00:12]} 37. Ra6 {[%clk 0:00:44]}  Kd5 {[%clk 0:00:10]} 38. Kd3 {[%clk 0:00:43]}  Rc3+ {[%clk 0:00:07]} 39. Kd2 {[%clk 0:00:42]}  Rf3 {[%clk 0:00:06]} 40. Rh8 {[%clk 0:00:38]}  b3 {[%clk 0:00:04]} 41. Rb6 {[%clk 0:00:39]}  Bc5 {[%clk 0:00:04]} 42. Rb5 {[%clk 0:00:33]}  Kc4 {[%clk 0:00:04]} 43. Rhb8 {[%clk 0:00:33]}  Rf2+ {[%clk 0:00:03]} 44. Ke1 {[%clk 0:00:33]}  Rxh2 {[%clk 0:00:04]} 45. Rxb3 {[%clk 0:00:33]}  Kd5 {[%clk 0:00:04]} 46. Kf1 {[%clk 0:00:31]}  Ra2 {[%clk 0:00:03]} 47. Rd3+ {[%clk 0:00:28]}  Ke6 {[%clk 0:00:03]} 48. Rc8 {[%clk 0:00:26]}  Bd6 {[%clk 0:00:03]} 49. Rg8 {[%clk 0:00:25]}  Kf7 {[%clk 0:00:03]} 50. Rc8 {[%clk 0:00:25]}  Ra1+ {[%clk 0:00:04]} 51. Ke2 {[%clk 0:00:24]}  Ra2+ {[%clk 0:00:05]} 52. Rd2 {[%clk 0:00:25]}  Ra3 {[%clk 0:00:05]} 53. Rd3 {[%clk 0:00:25]}  Ra4 {[%clk 0:00:05]} 54. Rc2 {[%clk 0:00:24]}  Re4+ {[%clk 0:00:05]} 55. Kf3 {[%clk 0:00:24]}  Rb4 {[%clk 0:00:06]} 56. Re2 {[%clk 0:00:24]}  Rb1 {[%clk 0:00:06]} 57. Rde3 {[%clk 0:00:24]}  Rc1 {[%clk 0:00:06]} 58. Rh2 {[%clk 0:00:23]}  Rf1+ {[%clk 0:00:06]} 59. Kg2 {[%clk 0:00:23]}  Rd1 {[%clk 0:00:07]} 60. Rh7+ {[%clk 0:00:21]}  Kf6 {[%clk 0:00:07]} 61. Re2 {[%clk 0:00:20]}  Rd4 {[%clk 0:00:07]} 62. Rh8 {[%clk 0:00:19]}  Rd3 {[%clk 0:00:07]} 63. Rf8+ {[%clk 0:00:18]}  Kg7 {[%clk 0:00:08]} 64. Ra8 {[%clk 0:00:19]}  g5 {[%clk 0:00:08]} 65. Raa2 {[%clk 0:00:19]}  gxf4 {[%clk 0:00:08]} 66. gxf4 {[%clk 0:00:20]}  Rd4 {[%clk 0:00:08]} 67. Ra7 {[%clk 0:00:10]}  Kf6 {[%clk 0:00:07]} 68. Rf2 {[%clk 0:00:07]}  Bxf4 {[%clk 0:00:06]} 69. Ra6+ {[%clk 0:00:07]}  Kg5 {[%clk 0:00:07]} 70. Re6 {[%clk 0:00:07]}  Bd6 {[%clk 0:00:06]} 71. Rfe2 {[%clk 0:00:06]}  Rg4+ {[%clk 0:00:02]} 72. Kf3 {[%clk 0:00:06]}  Rf4+ {[%clk 0:00:02]} 73. Kg2 {[%clk 0:00:06]}  Rg4+ {[%clk 0:00:02]} 74. Kf3 {[%clk 0:00:07]}  Rh4 {[%clk 0:00:03]} 75. Rxe7 {[%clk 0:00:07]}  Bxe7 {[%clk 0:00:03]} 76. Rxe7 {[%clk 0:00:06]}  Rh3+ {[%clk 0:00:04]} 77. Kg2 {[%clk 0:00:06]}  Ra3 {[%clk 0:00:05]} 78. Rb7 {[%clk 0:00:04]}  Kg4 {[%clk 0:00:05]} 79. Rg7+ {[%clk 0:00:04]}  Kf4 {[%clk 0:00:05]} 80. Kf1 {[%clk 0:00:04]}  Ra1+ {[%clk 0:00:05]} 81. Kf2 {[%clk 0:00:04]}  Ra2+ {[%clk 0:00:06]} 82. Kg1 {[%clk 0:00:05]}  Kf3 {[%clk 0:00:07]} 83. Rf7 {[%clk 0:00:04]}  f4 {[%clk 0:00:07]} 84. Re7 {[%clk 0:00:05]}  Ra1+ {[%clk 0:00:07]} 85. Kh2 {[%clk 0:00:05]}  Kf2 {[%clk 0:00:08]} 86. Rb7 {[%clk 0:00:05]}  Re1 {[%clk 0:00:08]} 87. Rb2+ {[%clk 0:00:03]}  Re2 {[%clk 0:00:09]} 88. Rb7 {[%clk 0:00:04]}  f3 {[%clk 0:00:10]} 89. Rb1 {[%clk 0:00:03]}  Re1 {[%clk 0:00:10]} 90. Rb2+ {[%clk 0:00:03]}  Re2 {[%clk 0:00:10]} 91. Rb1 {[%clk 0:00:03]}  Rd2 {[%clk 0:00:11]} 92. Rc1 {[%clk 0:00:03]}  Rb2 {[%clk 0:00:11]} 93. Rd1 {[%clk 0:00:03]}  Rb6 {[%clk 0:00:10]} 94. Rc1 {[%clk 0:00:03]}  Rh6# {[%clk 0:00:10]} 0-1


[Site "https://www.chess.com"]

[Event "Titled Tuesday Blitz March 29 Early 2022"]
[White "Krysa, Leandro"]
[Black "Jaskolka, Tomasz"]
[WhiteFideId "116807"]
[BlackFideId "1170791"]
[WhiteElo "2490"]
[BlackElo "2073"]
[Result "1/2-1/2"]
[Round "07"]
[TimeControl "180+1"]
[Date "2022.03.30"]
[WhiteClock "0:00:26"]
[BlackClock "0:00:03"]

1. e4 {[%clk 0:03:00]}  e6 {[%clk 0:03:00]} 2. d4 {[%clk 0:02:59]}  d5 {[%clk 0:03:00]} 3. e5 {[%clk 0:03:00]}  c5 {[%clk 0:03:00]} 4. c3 {[%clk 0:03:00]}  Bd7 {[%clk 0:03:00]} 5. Nf3 {[%clk 0:02:56]}  Qb6 {[%clk 0:03:00]} 6. Bd3 {[%clk 0:02:42]}  Bb5 {[%clk 0:03:00]} 7. dxc5 {[%clk 0:02:40]}  Bxc5 {[%clk 0:03:00]} 8. b4 {[%clk 0:02:39]}  Be7 {[%clk 0:02:37]} 9. O-O {[%clk 0:02:33]}  Nc6 {[%clk 0:02:35]} 10. Be3 {[%clk 0:02:22]}  Qa6 {[%clk 0:02:33]} 11. Bxb5 {[%clk 0:02:21]}  Qxb5 {[%clk 0:02:33]} 12. a4 {[%clk 0:02:18]}  Qc4 {[%clk 0:02:33]} 13. Na3 {[%clk 0:02:17]}  Qg4 {[%clk 0:02:24]} 14. Nb5 {[%clk 0:02:13]}  Rc8 {[%clk 0:02:21]} 15. Nxa7 {[%clk 0:02:07]}  Nxa7 {[%clk 0:02:21]} 16. Bxa7 {[%clk 0:02:08]}  Rxc3 {[%clk 0:02:11]} 17. Bd4 {[%clk 0:01:45]}  Rxf3 {[%clk 0:01:56]} 18. Qxf3 {[%clk 0:01:42]}  Qxd4 {[%clk 0:01:55]} 19. Rfd1 {[%clk 0:01:31]}  Qxe5 {[%clk 0:01:53]} 20. Rac1 {[%clk 0:01:18]}  Nf6 {[%clk 0:01:48]} 21. Rc8+ {[%clk 0:01:16]}  Bd8 {[%clk 0:01:48]} 22. Qg3 {[%clk 0:01:07]}  Qxg3 {[%clk 0:01:40]} 23. hxg3 {[%clk 0:01:08]}  O-O {[%clk 0:01:40]} 24. Rdc1 {[%clk 0:01:04]}  Be7 {[%clk 0:01:17]} 25. b5 {[%clk 0:00:49]}  b6 {[%clk 0:01:03]} 26. R1c6 {[%clk 0:00:45]}  Nd7 {[%clk 0:00:25]} 27. R6c7 {[%clk 0:00:44]}  Rxc8 {[%clk 0:00:24]} 28. Rxc8+ {[%clk 0:00:44]}  Bf8 {[%clk 0:00:24]} 29. Ra8 {[%clk 0:00:24]}  f6 {[%clk 0:00:21]} 30. Ra7 {[%clk 0:00:18]}  Nc5 {[%clk 0:00:17]} 31. Ra6 {[%clk 0:00:12]}  Kf7 {[%clk 0:00:15]} 32. Rxb6 {[%clk 0:00:11]}  Nxa4 {[%clk 0:00:15]} 33. Rb7+ {[%clk 0:00:12]}  Kg6 {[%clk 0:00:15]} 34. Ra7 {[%clk 0:00:09]}  Nb6 {[%clk 0:00:16]} 35. Rc7 {[%clk 0:00:08]}  d4 {[%clk 0:00:09]} 36. Rc6 {[%clk 0:00:07]}  d3 {[%clk 0:00:07]} 37. Kf1 {[%clk 0:00:06]}  Nd5 {[%clk 0:00:08]} 38. Rxe6 {[%clk 0:00:05]}  Nc3 {[%clk 0:00:06]} 39. Ke1 {[%clk 0:00:02]}  Nxb5 {[%clk 0:00:06]} 40. Kd2 {[%clk 0:00:03]}  Nd4 {[%clk 0:00:07]} 41. Re8 {[%clk 0:00:02]}  Bc5 {[%clk 0:00:07]} 42. Kxd3 {[%clk 0:00:03]}  Nc6 {[%clk 0:00:05]} 43. Rc8 {[%clk 0:00:02]}  Ne5+ {[%clk 0:00:06]} 44. Ke2 {[%clk 0:00:03]}  Bb6 {[%clk 0:00:05]} 45. f3 {[%clk 0:00:04]}  h6 {[%clk 0:00:05]} 46. g4 {[%clk 0:00:04]}  Ba7 {[%clk 0:00:05]} 47. Rc7 {[%clk 0:00:04]}  Bb6 {[%clk 0:00:05]} 48. Rb7 {[%clk 0:00:05]}  Bc5 {[%clk 0:00:05]} 49. Rb5 {[%clk 0:00:04]}  Bd6 {[%clk 0:00:05]} 50. Rb6 {[%clk 0:00:04]}  Bc7 {[%clk 0:00:05]} 51. Ra6 {[%clk 0:00:05]}  Bb8 {[%clk 0:00:04]} 52. Ra8 {[%clk 0:00:05]}  Bc7 {[%clk 0:00:04]} 53. Kf2 {[%clk 0:00:04]}  Nf7 {[%clk 0:00:04]} 54. Ke2 {[%clk 0:00:04]}  f5 {[%clk 0:00:04]} 55. gxf5+ {[%clk 0:00:04]}  Kf6 {[%clk 0:00:05]} 56. Ra7 {[%clk 0:00:05]}  Be5 {[%clk 0:00:05]} 57. g4 {[%clk 0:00:04]}  Nd6 {[%clk 0:00:05]} 58. Ra6 {[%clk 0:00:05]}  Kg5 {[%clk 0:00:04]} 59. Kf2 {[%clk 0:00:05]}  Bf4 {[%clk 0:00:05]} 60. Kg2 {[%clk 0:00:05]}  Nc4 {[%clk 0:00:03]} 61. Ra7 {[%clk 0:00:05]}  Kf6 {[%clk 0:00:03]} 62. Ra4 {[%clk 0:00:05]}  Ne3+ {[%clk 0:00:03]} 63. Kf2 {[%clk 0:00:04]}  Nd1+ {[%clk 0:00:03]} 64. Kg2 {[%clk 0:00:03]}  Ne3+ {[%clk 0:00:04]} 65. Kh3 {[%clk 0:00:04]}  Nd5 {[%clk 0:00:04]} 66. Ra6+ {[%clk 0:00:05]}  Ke5 {[%clk 0:00:04]} 67. Re6+ {[%clk 0:00:05]}  Kd4 {[%clk 0:00:04]} 68. Re4+ {[%clk 0:00:06]}  Kd3 {[%clk 0:00:04]} 69. Kh4 {[%clk 0:00:06]}  Bg5+ {[%clk 0:00:05]} 70. Kh3 {[%clk 0:00:05]}  Nf4+ {[%clk 0:00:05]} 71. Kg3 {[%clk 0:00:05]}  Ne2+ {[%clk 0:00:06]} 72. Kf2 {[%clk 0:00:05]}  Nd4 {[%clk 0:00:06]} 73. Re8 {[%clk 0:00:05]}  Bf6 {[%clk 0:00:07]} 74. Ra8 {[%clk 0:00:03]}  Kc4 {[%clk 0:00:07]} 75. Rc8+ {[%clk 0:00:02]}  Kd5 {[%clk 0:00:08]} 76. Ra8 {[%clk 0:00:03]}  Ke5 {[%clk 0:00:08]} 77. Kg3 {[%clk 0:00:03]}  Ne2+ {[%clk 0:00:08]} 78. Kf2 {[%clk 0:00:03]}  Nf4 {[%clk 0:00:08]} 79. Ra5+ {[%clk 0:00:03]}  Kd6 {[%clk 0:00:09]} 80. Ra4 {[%clk 0:00:04]}  Nd3+ {[%clk 0:00:09]} 81. Ke3 {[%clk 0:00:04]}  Ne5 {[%clk 0:00:10]} 82. Ra6+ {[%clk 0:00:05]}  Kd5 {[%clk 0:00:10]} 83. Ra5+ {[%clk 0:00:05]}  Kd6 {[%clk 0:00:11]} 84. Ke4 {[%clk 0:00:05]}  Nc4 {[%clk 0:00:11]} 85. Ra6+ {[%clk 0:00:05]}  Ke7 {[%clk 0:00:12]} 86. Kd5 {[%clk 0:00:05]}  Nd2 {[%clk 0:00:12]} 87. Ra7+ {[%clk 0:00:05]}  Kf8 {[%clk 0:00:12]} 88. Ke6 {[%clk 0:00:04]}  Kg8 {[%clk 0:00:11]} 89. f4 {[%clk 0:00:05]}  Ne4 {[%clk 0:00:10]} 90. Ra8+ {[%clk 0:00:04]}  Kh7 {[%clk 0:00:11]} 91. Kf7 {[%clk 0:00:03]}  Nd6+ {[%clk 0:00:11]} 92. Ke6 {[%clk 0:00:04]}  Ne4 {[%clk 0:00:11]} 93. Rc8 {[%clk 0:00:03]}  Nf2 {[%clk 0:00:11]} 94. g5 {[%clk 0:00:01]}  hxg5 {[%clk 0:00:12]} 95. fxg5 {[%clk 0:00:02]}  Bxg5 {[%clk 0:00:13]} 96. Rc2 {[%clk 0:00:02]}  Ng4 {[%clk 0:00:13]} 97. Rg2 {[%clk 0:00:02]}  Nf6 {[%clk 0:00:04]} 98. Rh2+ {[%clk 0:00:03]}  Bh6 {[%clk 0:00:05]} 99. Rg2 {[%clk 0:00:03]}  Kg8 {[%clk 0:00:05]} 100. Ke7 {[%clk 0:00:03]}  Nd5+ {[%clk 0:00:05]} 101. Ke6 {[%clk 0:00:04]}  Nf4+ {[%clk 0:00:06]} 102. Ke7 {[%clk 0:00:04]}  Nxg2 {[%clk 0:00:07]} 103. f6 {[%clk 0:00:04]}  gxf6 {[%clk 0:00:08]} 104. Kxf6 {[%clk 0:00:04]}  Bg7+ {[%clk 0:00:08]} 105. Kg6 {[%clk 0:00:05]}  Ne3 {[%clk 0:00:09]} 106. Kg5 {[%clk 0:00:05]}  Kf7 {[%clk 0:00:10]} 107. Kf4 {[%clk 0:00:06]}  Nd5+ {[%clk 0:00:10]} 108. Ke4 {[%clk 0:00:07]}  Ke6 {[%clk 0:00:10]} 109. Kf3 {[%clk 0:00:07]}  Ke5 {[%clk 0:00:11]} 110. Kg3 {[%clk 0:00:07]}  Kf5 {[%clk 0:00:11]} 111. Kf3 {[%clk 0:00:07]}  Be5 {[%clk 0:00:12]} 112. Ke2 {[%clk 0:00:05]}  Ke4 {[%clk 0:00:12]} 113. Kf2 {[%clk 0:00:06]}  Bf4 {[%clk 0:00:11]} 114. Kg2 {[%clk 0:00:07]}  Ke3 {[%clk 0:00:11]} 115. Kh3 {[%clk 0:00:07]}  Kf3 {[%clk 0:00:11]} 116. Kh4 {[%clk 0:00:08]}  Nf6 {[%clk 0:00:11]} 117. Kh3 {[%clk 0:00:08]}  Ne4 {[%clk 0:00:11]} 118. Kh4 {[%clk 0:00:09]}  Nf6 {[%clk 0:00:07]} 119. Kh3 {[%clk 0:00:09]}  Bg5 {[%clk 0:00:07]} 120. Kh2 {[%clk 0:00:10]}  Ng4+ {[%clk 0:00:07]} 121. Kh3 {[%clk 0:00:10]}  Nf2+ {[%clk 0:00:07]} 122. Kh2 {[%clk 0:00:11]}  Nd3 {[%clk 0:00:04]} 123. Kh3 {[%clk 0:00:11]}  Nf4+ {[%clk 0:00:04]} 124. Kh2 {[%clk 0:00:12]}  Bh4 {[%clk 0:00:04]} 125. Kg1 {[%clk 0:00:12]}  Bg3 {[%clk 0:00:04]} 126. Kh1 {[%clk 0:00:13]}  Nd3 {[%clk 0:00:03]} 127. Kg1 {[%clk 0:00:14]}  Nf4 {[%clk 0:00:03]} 128. Kh1 {[%clk 0:00:15]}  Ng6 {[%clk 0:00:03]} 129. Kg1 {[%clk 0:00:16]}  Ne5 {[%clk 0:00:03]} 130. Kh1 {[%clk 0:00:16]}  Ng4 {[%clk 0:00:04]} 131. Kg1 {[%clk 0:00:17]}  Bf4 {[%clk 0:00:05]} 132. Kh1 {[%clk 0:00:18]}  Nf2+ {[%clk 0:00:05]} 133. Kg1 {[%clk 0:00:19]}  Be5 {[%clk 0:00:05]} 134. Kf1 {[%clk 0:00:19]}  Bh2 {[%clk 0:00:06]} 135. Ke1 {[%clk 0:00:20]}  Ne4 {[%clk 0:00:06]} 136. Kd1 {[%clk 0:00:20]}  Ke3 {[%clk 0:00:06]} 137. Kc2 {[%clk 0:00:20]}  Bd6 {[%clk 0:00:07]} 138. Kb3 {[%clk 0:00:20]}  Kd4 {[%clk 0:00:07]} 139. Ka4 {[%clk 0:00:20]}  Kc5 {[%clk 0:00:06]} 140. Ka5 {[%clk 0:00:21]}  Nc3 {[%clk 0:00:06]} 141. Ka6 {[%clk 0:00:22]}  Nd5 {[%clk 0:00:07]} 142. Kb7 {[%clk 0:00:22]}  Kb5 {[%clk 0:00:07]} 143. Ka8 {[%clk 0:00:21]}  Bc5 {[%clk 0:00:07]} 144. Kb7 {[%clk 0:00:22]}  Bb6 {[%clk 0:00:07]} 145. Ka8 {[%clk 0:00:23]}  Kc6 {[%clk 0:00:07]} 146. Kb8 {[%clk 0:00:24]}  Ne7 {[%clk 0:00:06]} 147. Ka8 {[%clk 0:00:24]}  Nd5 {[%clk 0:00:07]} 148. Kb8 {[%clk 0:00:25]}  Nc3 {[%clk 0:00:06]} 149. Ka8 {[%clk 0:00:26]}  Nb5 {[%clk 0:00:06]} 150. Kb8 {[%clk 0:00:24]}  Nc7 {[%clk 0:00:03]} 151. Kc8 {[%clk 0:00:24]}  Ba7 {[%clk 0:00:02]} 152. Kd8 {[%clk 0:00:25]}  Nd5 {[%clk 0:00:02]} 153. Ke8 {[%clk 0:00:25]}  Kd6 {[%clk 0:00:03]} 154. Kf7 {[%clk 0:00:26]} 1/2-1/2


[Site "https://www.chess.com"]

[Event "Titled Tuesday Blitz March 29 Early 2022"]
[White "Lakshmi C"]
[Black "De Souza, Cristiano Gomes"]
[WhiteFideId "25035347"]
[BlackFideId "2151758"]
[WhiteElo "1775"]
[BlackElo "2068"]
[Result "0-1"]
[Round "07"]
[TimeControl "180+1"]
[Date "2022.03.30"]
[WhiteClock "0:00:02"]
[BlackClock "0:01:26"]

1. e4 {[%clk 0:02:59]}  c5 {[%clk 0:02:59]} 2. Nf3 {[%clk 0:02:59]}  d6 {[%clk 0:02:59]} 3. d4 {[%clk 0:02:59]}  cxd4 {[%clk 0:02:58]} 4. Nxd4 {[%clk 0:02:58]}  Nf6 {[%clk 0:02:59]} 5. Nc3 {[%clk 0:02:57]}  a6 {[%clk 0:02:59]} 6. a4 {[%clk 0:02:46]}  e5 {[%clk 0:02:58]} 7. Nb3 {[%clk 0:02:42]}  h6 {[%clk 0:02:57]} 8. Bc4 {[%clk 0:02:38]}  Be7 {[%clk 0:02:54]} 9. h3 {[%clk 0:02:32]}  O-O {[%clk 0:02:53]} 10. Be3 {[%clk 0:02:32]}  Nc6 {[%clk 0:02:50]} 11. a5 {[%clk 0:02:30]}  Be6 {[%clk 0:02:48]} 12. Bb6 {[%clk 0:02:24]}  Qd7 {[%clk 0:02:46]} 13. Nd5 {[%clk 0:02:14]}  Bd8 {[%clk 0:02:41]} 14. Bxd8 {[%clk 0:00:32]}  Qxd8 {[%clk 0:02:35]} 15. Qe2 {[%clk 0:00:28]}  Bxd5 {[%clk 0:02:30]} 16. exd5 {[%clk 0:00:28]}  Ne7 {[%clk 0:02:30]} 17. Rd1 {[%clk 0:00:26]}  Rc8 {[%clk 0:02:27]} 18. Rd3 {[%clk 0:00:20]}  Qc7 {[%clk 0:02:27]} 19. Rc3 {[%clk 0:00:19]}  Qd7 {[%clk 0:02:22]} 20. Qd3 {[%clk 0:00:17]}  e4 {[%clk 0:02:20]} 21. Qd2 {[%clk 0:00:16]}  Qf5 {[%clk 0:02:14]} 22. O-O {[%clk 0:00:16]}  Ng6 {[%clk 0:02:11]} 23. Nd4 {[%clk 0:00:16]}  Qh5 {[%clk 0:02:07]} 24. Ne2 {[%clk 0:00:15]}  Ne5 {[%clk 0:02:05]} 25. Nf4 {[%clk 0:00:14]}  Qg5 {[%clk 0:02:04]} 26. Rg3 {[%clk 0:00:14]}  Nxc4 {[%clk 0:01:59]} 27. Qc1 {[%clk 0:00:10]}  Qe5 {[%clk 0:01:57]} 28. b3 {[%clk 0:00:08]}  Nxa5 {[%clk 0:01:56]} 29. c4 {[%clk 0:00:08]}  b5 {[%clk 0:01:51]} 30. Re1 {[%clk 0:00:06]}  bxc4 {[%clk 0:01:50]} 31. b4 {[%clk 0:00:06]}  Nb3 {[%clk 0:01:50]} 32. Qe3 {[%clk 0:00:06]}  Nd4 {[%clk 0:01:49]} 33. Rd1 {[%clk 0:00:04]}  Nf5 {[%clk 0:01:49]} 34. Qc1 {[%clk 0:00:04]}  Nxg3 {[%clk 0:01:49]} 35. fxg3 {[%clk 0:00:05]}  e3 {[%clk 0:01:47]} 36. Kh2 {[%clk 0:00:04]}  Rfe8 {[%clk 0:01:43]} 37. Re1 {[%clk 0:00:03]}  g5 {[%clk 0:01:38]} 38. Ne2 {[%clk 0:00:02]}  Kg7 {[%clk 0:01:35]} 39. Rd1 {[%clk 0:00:02]}  c3 {[%clk 0:01:34]} 40. Rd4 {[%clk 0:00:02]}  c2 {[%clk 0:01:31]} 41. Rd3 {[%clk 0:00:02]}  Nxd5 {[%clk 0:01:28]} 42. Qa3 {[%clk 0:00:02]}  Nf6 {[%clk 0:01:26]} 0-1


[Site "https://www.chess.com"]

[Event "Titled Tuesday Blitz March 29 Early 2022"]
[White "Le Ruyet, Leopold"]
[Black "Polster, Christian"]
[WhiteFideId "645923"]
[BlackFideId "12965081"]
[WhiteElo "2276"]
[BlackElo "2345"]
[Result "1-0"]
[Round "07"]
[TimeControl "180+1"]
[Date "2022.03.30"]
[WhiteClock "0:00:24"]
[BlackClock "0:01:04"]

1. d4 {[%clk 0:03:00]}  d5 {[%clk 0:02:58]} 2. c4 {[%clk 0:03:01]}  e6 {[%clk 0:02:58]} 3. Nc3 {[%clk 0:03:00]}  c6 {[%clk 0:02:58]} 4. cxd5 {[%clk 0:03:00]}  exd5 {[%clk 0:02:59]} 5. Bf4 {[%clk 0:03:00]}  Bd6 {[%clk 0:02:59]} 6. Bxd6 {[%clk 0:02:59]}  Qxd6 {[%clk 0:03:00]} 7. e3 {[%clk 0:02:59]}  Nf6 {[%clk 0:03:00]} 8. Bd3 {[%clk 0:02:59]}  O-O {[%clk 0:03:00]} 9. Nf3 {[%clk 0:02:53]}  Bg4 {[%clk 0:02:59]} 10. h3 {[%clk 0:02:52]}  Bh5 {[%clk 0:02:58]} 11. g4 {[%clk 0:02:44]}  Bg6 {[%clk 0:02:58]} 12. Ne5 {[%clk 0:02:44]}  Bxd3 {[%clk 0:02:55]} 13. Qxd3 {[%clk 0:02:37]}  Nbd7 {[%clk 0:02:54]} 14. f4 {[%clk 0:02:37]}  Ne4 {[%clk 0:02:47]} 15. Nxd7 {[%clk 0:01:56]}  Nxc3 {[%clk 0:02:46]} 16. Nxf8 {[%clk 0:01:49]}  Ne4 {[%clk 0:02:46]} 17. O-O {[%clk 0:01:46]}  Rxf8 {[%clk 0:02:43]} 18. a3 {[%clk 0:01:40]}  g5 {[%clk 0:02:37]} 19. b4 {[%clk 0:01:36]}  f5 {[%clk 0:02:36]} 20. Qd1 {[%clk 0:01:01]}  Kh8 {[%clk 0:02:27]} 21. gxf5 {[%clk 0:00:58]}  gxf4 {[%clk 0:02:07]} 22. Rxf4 {[%clk 0:00:55]}  Rg8+ {[%clk 0:02:04]} 23. Kh2 {[%clk 0:00:50]}  Rg3 {[%clk 0:01:42]} 24. Qh5 {[%clk 0:00:44]}  Rxe3 {[%clk 0:01:32]} 25. Qe8+ {[%clk 0:00:32]}  Kg7 {[%clk 0:01:31]} 26. Rg1+ {[%clk 0:00:28]}  Kh6 {[%clk 0:01:10]} 27. Qe6+ {[%clk 0:00:24]}  Qxe6 {[%clk 0:01:04]} 28. Rh4# {[%clk 0:00:24]} 1-0


[Site "https://www.chess.com"]